Cogmind - Beta 15 @@@ ROGUE MODE // 2025.08.19 @ 00:15:29 Player: Yam Yam Result: Core destroyed Performance ------------- Evolutions (0) 0 Regions Visited (1) 200 Robots Destroyed (9) 45 Value Destroyed (231) 231 Prototype IDs (0) 0 Alien Tech Used (0) 0 Bonus (0) 0 TOTAL SCORE: 476 Bonus ------- None Cogmind --------- Core Integrity 0/250 Matter 300/300 Energy 100/100 System Corruption 0% Temperature Cool (0) Movement Core (50) Location -10/Materials Parts ------- > --- POWER (1) -------- (None) > --- PROPULSION (2) --- (None) > --- UTILITY (2) ------ (None) > --- WEAPON (2) ------- (None) > --- INVENTORY (5) ---- Ion Engine Light Ion Engine Visual Processing Unit Peak State ------------ > --- POWER ------------ Light Ion Engine > --- PROPULSION ------- Light Treads Light Treads > --- UTILITY ---------- Heat Sink Hacking Suite > --- WEAPON ----------- EM Pulse Gun Assault Rifle > --- INVENTORY -------- Ion Engine Light Ion Engine [Rating: 9] Favorites ----------- Power Light Ion Engine Engine Light Ion Engine Propulsion Light Treads Treads Light Treads Utility Hacking Suite Device Heat Sink Hackware Hacking Suite Weapon Assault Rifle Energy Gun EM Pulse Gun Ballistic Gun Assault Rifle Build | -11 -10 ------- Run | Yrd Mat Slots Evolved . | . . Power . | . . Propulsion . | . . Utility . | . . Weapon . | . . Parts Attached 7 | 5 2 Power 1 | 1 . Engine 1 | 1 . Core . | . . Reactor . | . . Propulsion 2 | 2 . Treads 2 | 2 . Leg . | . . Wheel . | . . Hover . | . . Flight . | . . Utility 2 | . 2 Device 1 | . 1 Storage . | . . Processor . | . . Hackware 1 | . 1 Protection . | . . Artifact . | . . Weapon 2 | 2 . Energy Gun 1 | 1 . Energy Cannon . | . . Ballistic Gun 1 | 1 . Ballistic Cannon . | . . Launcher . | . . Special Weapon . | . . Impact Weapon . | . . Slashing Weapon . | . . Piercing Weapon . | . . Special Melee Weapon . | . . Unidentified Prototypes . | . . Parts Lost 7 | . 7 Power 1 | . 1 Propulsion 2 | . 2 Utility 2 | . 2 Weapon 2 | . 2 Highest Loss Streak 7 | . 7 To Critical Strikes . | . . Average Backups 1 | 1 1 Power 1 | . 1 Propulsion . | . . Utility . | . . Weapon . | . . Tool/Special . | . . Unused Backups 3 | . 3 Power 2 | . 2 Propulsion . | . . Utility 1 | . 1 Weapon . | . . Tool/Special . | . . Average Slot Usage (%) 82 | . 82 Engine 12 | . 12 Treads 26 | . 26 Device 5 | . 5 Hackware 12 | . 12 Energy Gun 11 | . 11 Ballistic Gun 13 | . 13 Peak Build Rating 9 | 5 9 Average Rating 6 | 3 7 On Entrance 2 | . 5 Naked Turns 11 | . 11 Heaviest Build 8 | 7 8 Greatest Support 40 | 40 40 Greatest Overweight (x) . | . . Average Overweight (x) . | . . Largest Inventory Capacity 5 | 5 5 Average Capacity 5 | 5 5 Most Carried 5 | 5 3 Average Carried 1 | 1 1 Final Capacity 5 | 5 5 Final Carried 3 | 1 3 Class Distribution -------------------- 100% | Mutant Dominant Class ---------------- Mutant | -10/Materials Resources | -11 -10 ----------- Run | Yrd Mat Matter Collected 338 | 250 88 Remotely . | . . Salvage Created 283 | . 283 Parts 24 | . 24 Haulers Intercepted . | . . Recyclers Shooed 1 | . 1 Parts Field Recycled . | . . Retrieved Matter . | . . Parts Self-Destructed . | . . Prevented . | . . Kills | -11 -10 ------- Run | Yrd Mat Combat Hostiles Destroyed 7 | . 7 Melee 1 | . 1 Guns 4 | . 4 AOE 2 | . 2 Classes Destroyed 4 | . 4 Operator 1 | . 1 Watcher 1 | . 1 Swarmer 3 | . 3 Grunt 4 | . 4 Best Kill Streak 3 | . 3 Combat Bots Only 3 | . 3 Max Kills in Single Turn 1 | . 1 Gunslinging . | . . Exploded 1 | . 1 Melee 1 | . 1 Uniques/NPCs Destroyed . | . . Combat | -11 -10 -------- Run | Yrd Mat Hostile Shots Fired 85 | . 85 Missed 25 | . 25 Hits 60 | . 60 Projectile 60 | . 60 Critical Strikes 1 | . 1 Damage Taken 790 | . 790 Core 258 | . 258 Absorbed by Shields . | . . Core Remaining (%) 100 | 100 . Volleys Fired 26 | . 26 Largest 2 | . 2 Hottest 60 | . 60 Shots Fired 44 | . 44 Gun 44 | . 44 Cannon . | . . Launcher . | . . Special . | . . Kinetic 26 | . 26 Thermal . | . . Explosive . | . . Electromagnetic 18 | . 18 Robot Hit Streak 8 | . 8 Robot Miss Streak 3 | . 3 Penetration Max . | . . Secondary Targets 2 | . 2 Max Gunslinging Chain 1 | . 1 Shots Hit Robots 26 | . 26 Core Hits 19 | . 19 Critical Kills . | . . Critical Parts Destroyed . | . . Critical Strikes . | . . Melee Attacks . | . . Impact . | . . Slashing . | . . Piercing . | . . Sneak Attacks . | . . Combat Hostiles . | . . Follow-up Attacks . | . . Damage Inflicted 511 | . 511 Guns 365 | . 365 Cannons . | . . Explosions 100 | . 100 Melee . | . . Ramming 46 | . 46 Kinetic 164 | . 164 Thermal 100 | . 100 Explosive . | . . Electromagnetic 201 | . 201 Impact . | . . Slashing . | . . Piercing . | . . Highest Corruption . | . . Average Corruption . | . . Corruption Purged . | . . Corruption Blocked . | . . Overload Shots . | . . Overflow Damage . | . . Projectiles . | . . Explosions . | . . Melee . | . . Knockbacks . | . . Impact . | . . Kinetic . | . . Secondary . | . . Self-Inflicted Damage 19 | . 19 Shots . | . . Rammed 14 | . 14 Targets Rammed 14 | . 14 Kicked . | . . Crushed . | . . Highest Temperature 30 | . 30 Average Temperature 18 | . 18 Received Heat Transfer 420 | . 420 Siege Activations . | . . Martial Activations . | . . Shielding Activations . | . . Robots Disrupted . | . . Combat Hostiles . | . . Robots Corrupted . | . . Combat Hostiles . | . . Parts Fried . | . . Impact Corruptions . | . . Robots Melted . | . . Combat Hostiles . | . . Parts Melted . | . . Heat Transferred . | . . Parts Sabotaged . | . . Parts Stolen . | . . Parts Stripped . | . . Power Chain Reactions 2 | . 2 Alert | -11 -10 ------- Run | Yrd Mat Maximum Alert Level . | . . Low Security (%) 100 | 100 100 Level 1 . | . . Level 2 . | . . Level 3 . | . . Level 4 . | . . Level 5 . | . . High Security . | . . Max Security . | . . Peak Influence 132 | . 132 Initial . | . . Average 36 | . 44 Influence Increases 220 | . 220 Destroy 0b10 Robot/C 140 | . 140 Destroy 0b10 Robot/NC 10 | . 10 Destroy Leader 32 | . 32 Successful Hack 3 | . 3 Disable Machine 30 | . 30 Destroy Structure 5 | . 5 Influence Decreases 168 | . 168 Time Decay 98 | . 98 Lost Part 70 | . 70 Squads Dispatched 2 | . 2 Investigation 1 | . 1 Extermination . | . . Reinforcement 1 | . 1 Assault . | . . Garrison . | . . Intercept . | . . Searches Triggered . | . . Construction Impeded . | . . Haulers Reinforced . | . . Active Scanning Responses . | . . Cargo Convoy Interrupts . | . . Stealth | -11 -10 --------- Run | Yrd Mat Distress Signals 2 | . 2 Communications Jammed . | . . Distress Signals . | . . Times Spotted 14 | . 14 Peak Tracking Total 5 | . 5 Tactical Retreats . | . . Traps | -11 -10 ------- Run | Yrd Mat Traps Triggered 1 | . 1 Indirectly . | . . Trap Hack Attempts . | . . Triggered . | . . Disarmed . | . . Reprogrammed . | . . Reused . | . . Traps Extracted . | . . Installed . | . . Triggered . | . . Machines | -11 -10 ---------- Run | Yrd Mat Machines Disabled 2 | . 2 Max in Single Turn 1 | . 1 Machines Repaired . | . . Machines Dismantled . | . . Machines Sabotaged . | . . Overloaded Fab Kills . | . . Hacking | -11 -10 --------- Run | Yrd Mat Machines Accessed 2 | . 2 Terminals 1 | . 1 Fabricators . | . . Repair Stations . | . . Recycling Units 1 | . 1 Scanalyzers . | . . Garrison Access . | . . Total Hacks 4 | . 4 Successful 2 | . 2 Failed 2 | . 2 Catastrophic . | . . Database Lockouts . | . . Manual . | . . Terminals 2 | . 2 Fabricators . | . . Repair Stations . | . . Recycling Units 2 | . 2 Scanalyzers . | . . Garrison Access . | . . Terminal Hacks 2 | . 2 Record 2 | . 2 Fabricator Hacks . | . . Repair Station Hacks . | . . Recycling Unit Hacks . | . . Scanalyzer . | . . Garrison Access Hacks . | . . Unauthorized Hacks . | . . Terminals . | . . Fabricators . | . . Repair Stations . | . . Recycling Units . | . . Scanalyzers . | . . Garrison Access . | . . Data Cores Recovered 1 | . 1 Used . | . . Hacking Detections 2 | . 2 Full Trace Events . | . . Feedback Events . | . . Feedback Blocked . | . . Robot Schematics Acquired . | . . Robots Built . | . . Authchips . | . . Time . | . . Total Robot Build Rating . | . . Part Schematics Acquired . | . . Parts Built . | . . Authchips . | . . Time . | . . Total Part Build Rating . | . . Parts Repaired . | . . Time . | . . Parts Recycled . | . . Recycled Matter . | . . Retrieved Matter . | . . Retrieved Components . | . . Parts Scanalyzed . | . . Part Schematics Acquired . | . . Parts Damaged . | . . Bothacking | -11 -10 ------------ Run | Yrd Mat Used RIF Installer . | . . Robots Hacked . | . . Non-combat . | . . Combat . | . . Robot Hacks Applied . | . . Relay Couplers Released . | . . Fabnet Peak Effective % . | . . Robots Rewired . | . . Allies Hacked . | . . Hacks Repelled . | . . Allies | -11 -10 -------- Run | Yrd Mat Total Allies . | . . Largest Group . | . . Highest-Rated Group . | . . Highest-Rated Ally . | . . Total Orders . | . . Ally Attacks . | . . Total Damage . | . . Kills . | . . Allies Corrupted . | . . Allies Melted . | . . Intel | -11 -10 ------- Run | Yrd Mat Active Infowar (turns) . | . . Robot Analysis Total . | . . Derelict Logs Recovered . | . . Drone Launches . | . . Drone Recoveries . | . . Exploration | -11 -10 ------------- Run | Yrd Mat Turns Passed 365 | 67 298 Spaces Moved 185 | 55 130 Core 38 | 29 9 Treads 147 | 26 121 Legs . | . . Wheels . | . . Hover . | . . Flight . | . . Fastest Speed 50 | 50 50 Average Speed 137 | 102 152 Slowest Speed 160 | 160 160 Overloaded Moves . | . . Propulsion Burnouts . | . . Robots Hopped . | . . Potential Cave-ins . | . . Cave-ins Triggered . | . . Exploration Rate (%) 17 | 3 31 Regions Visited 1 Branch Regions . Pre-discovered Areas . | . . Known Exits Taken . | . . Unknown Exits Taken 1 | 1 . Scrap Searched . | . . Spaces Dug . | . . Terrain Destroyed 4 | . 4 Melee . | . . Projectile . | . . AOE 4 | . 4 Terrain Rammed . | . . Walls Destroyed . | . . Machines Disabled . | . . Actions | -11 -10 --------- Run | Yrd Mat Total 250 | 66 184 Wait 10 | 1 9 Move 184 | 54 130 Hop . | . . Pick Up 10 | 6 4 Fast Attach . | . . Attach 7 | 5 2 Detach . | . . Swap . | . . Drop . | . . Fire 26 | . 26 Melee . | . . Ram 11 | . 11 Kick . | . . Crush 2 | . 2 Escape Stasis . | . . Rewire . | . . Trap . | . . Miscellaneous . | . . Route ------- -11/Scrapyard -10/Materials (discovered 2 exits: [*Min x2]) History --------- Turn | Location | Event 34 | -11/Scrapyard | Discovered new exit (range 15) 68 | -11/Scrapyard | Entered Materials 175 | -10/Materials | Discovered new exit (range 6) 268 | -10/Materials | Discovered new exit (range 11) 315 | -10/Materials | Build established: Mutant 352 | -10/Materials | Core integrity fell below 50% 359 | -10/Materials | Core integrity fell below 20% 366 | -10/Materials | Core destroyed Last Messages --------------- K-01 Serf collects debris. Slammed into G-34 Mercenary. Lgt. Treads destroyed. Slammed into G-34 Mercenary. K-01 Serf collects debris. Slammed into G-34 Mercenary. Heat Sink destroyed. Slammed into G-34 Mercenary. Hacking Suite destroyed. Slammed into G-34 Mercenary. K-01 Serf collects debris. Slammed into G-34 Mercenary. G-34 Mercenary destroyed. [Achievement: Fist Fight] Slammed into G-34 Mercenary. G-34 Mercenary destroyed. Slammed into G-47 Trooper. K-01 Serf collects debris. Slammed into G-47 Trooper. Destabilizing: Core damaged (-10). Map ----- +----------------------------------------------------+ | ?????????????????????????????????????????????????? | | ?????????????????????????????????????????????????? | | ?????????????????????????????????????????????????? | | ?????????????????????????????????????????????????? | | ???????????????????? ???????????????????????????? | | ???????????????????? #?????????????????????????? | | ???????????????????? ??????????????????????? | | ??????????????????## ????????????????????? | | ??????????????????# ???????????????????? | | ??????????? ####### ???????????????????? | | ???????????? ???????????????????? | | ????????????? !!! ???????????????????? | | ?????????????? !! ????????????????????? | | ??????????????# !! ?????????????????????? | | ??????????????# [%= ?????????????????????? | | ??????????????# *= #???????#??????????????? | | ??????????????# [% " #?????? #??????????????? | | ??????????????# ==""" #????? #??????????????? | | ??????????????# """ #????? #??????????????? | | ??????????????# #????< #??????????????? | | ??????????????# =% #???? #??????????????? | | ??????????????# *%[=k#??? #??????????????? | | ??????????????# *%%#??? #??????????????? | | ??????????????# ""% #### #???????????????? | | ??????????????# Y"%g= #???????????????? | | ??????????????# ""%@! % +???????????????? | | ??????????????# =%[ #???????????????? | | ??????????????# #???????????????? | | ??????????????# #########+######???????????????? | | ??????????????# ???# #############????????? | | ??????????????# ???# # #????????? | | ?????????????# ???# * # ^ #????????? | | ???????????? ???# %=# #????????? | | ??????????? T ???# # #????????? | | ?????????? ????# = #^ """ #????????? | | ??????????#### ?????#####+## """ #????????? | | ?????????????#???????????# ## """ #????????? | | ?????????????????????????# ## ^ #????????? | | ??????????????????########+## ^ #????????? | | ??????????????????# # #????????? | | ??????????????????# # ^ #????????? | | ??????????????????# =% # "T" #????????? | | ??????????????????# + """ #????????? | | ??????????????????#